[Event "Early-Titled-Tuesday-Blitz-March-05-2024"]
[Site "Chess.com"]
[Date "2024.03.05"]
[Round "1"]
[White "Ralf61"]
[Black "mary-sanna"]
[Result "1-0"]
[WhiteElo "2572"]
[BlackElo "2210"]
[TimeControl "180+1"]
[EndTime "8:06:37 PST"]
[Termination "Ralf61 won on time"]

1. d4 {[%clk 0:02:58.9]} 1... d5 {[%clk 0:02:59.9]} 2. c4 {[%clk 0:02:57.2]}
2... e6 {[%clk 0:02:59.9]} 3. Nc3 {[%clk 0:02:54.7]} 3... Nf6 {[%clk 0:02:59.4]}
4. cxd5 {[%clk 0:02:53]} 4... exd5 {[%clk 0:03:00.3]} 5. Bg5 {[%clk 0:02:52.6]}
5... Be7 {[%clk 0:02:59.8]} 6. e3 {[%clk 0:02:52]} 6... h6 {[%clk 0:02:59.6]} 7.
Bh4 {[%clk 0:02:50.5]} 7... Bg4 {[%clk 0:02:59.4]} 8. Qb3 {[%clk 0:02:44.7]}
8... Nbd7 {[%clk 0:02:55.5]} 9. h3 {[%clk 0:02:29.4]} 9... Be6 {[%clk 0:02:29]}
10. Nge2 {[%clk 0:02:15.8]} 10... O-O {[%clk 0:02:25.4]} 11. Nf4 {[%clk
0:02:12.1]} 11... c5 {[%clk 0:02:11.6]} 12. Nxe6 {[%clk 0:02:02.8]} 12... fxe6
{[%clk 0:02:10.9]} 13. Qxb7 {[%clk 0:02:00.7]} 13... Rb8 {[%clk 0:02:06.7]} 14.
Qa6 {[%clk 0:01:59.8]} 14... Rb6 {[%clk 0:01:49.9]} 15. Qe2 {[%clk 0:01:46]}
15... Qb8 {[%clk 0:01:45.9]} 16. Rb1 {[%clk 0:01:42.9]} 16... Kh8 {[%clk
0:01:16.1]} 17. Qc2 {[%clk 0:01:38.5]} 17... cxd4 {[%clk 0:01:03.6]} 18. exd4
{[%clk 0:01:37.2]} 18... Rb4 {[%clk 0:01:04.2]} 19. Bg3 {[%clk 0:01:33.2]} 19...
Qb6 {[%clk 0:01:03.4]} 20. Be2 {[%clk 0:01:30.7]} 20... Qxd4 {[%clk 0:00:43.2]}
21. O-O {[%clk 0:01:30]} 21... Ne4 {[%clk 0:00:40.9]} 22. Nxe4 {[%clk
0:01:26.9]} 22... Qxe4 {[%clk 0:00:40.8]} 23. Bd3 {[%clk 0:01:18.4]} 23... Qd4
{[%clk 0:00:35]} 24. Rfe1 {[%clk 0:01:17.9]} 24... Rb6 {[%clk 0:00:19.9]} 25. b3
{[%clk 0:01:10.4]} 25... e5 {[%clk 0:00:18.7]} 26. Rbd1 {[%clk 0:01:07.8]} 26...
Qc5 {[%clk 0:00:07.8]} 27. Bxe5 {[%clk 0:01:03.1]} 27... Qxc2 {[%clk 0:00:06.7]}
28. Bxc2 {[%clk 0:01:02.4]} 28... Nxe5 {[%clk 0:00:05.6]} 29. Rxe5 {[%clk
0:01:00.7]} 29... Bc5 {[%clk 0:00:06.2]} 30. Rd2 {[%clk 0:00:58.7]} 30... Rbf6
{[%clk 0:00:03.8]} 31. Ree2 {[%clk 0:00:55.8]} 31... a5 {[%clk 0:00:02.3]} 32.
g3 {[%clk 0:00:52.1]} 32... Rf3 {[%clk 0:00:02]} 33. Kg2 {[%clk 0:00:51.7]} 1-0

[Event "Early-Titled-Tuesday-Blitz-March-05-2024"]
[Site "Chess.com"]
[Date "2024.03.05"]
[Round "1"]
[White "vi_pranav"]
[Black "N18player"]
[Result "1-0"]
[WhiteElo "3077"]
[BlackElo "2521"]
[TimeControl "180+1"]
[EndTime "8:06:38 PST"]
[Termination "vi_pranav won by resignation"]

1. d4 {[%clk 0:02:29.1]} 1... Nf6 {[%clk 0:02:59.5]} 2. Nc3 {[%clk 0:02:28.4]}
2... d5 {[%clk 0:02:58.2]} 3. Bf4 {[%clk 0:02:28.7]} 3... c6 {[%clk 0:02:57.5]}
4. e3 {[%clk 0:02:25.3]} 4... Bf5 {[%clk 0:02:56.9]} 5. Nf3 {[%clk 0:02:23.9]}
5... h6 {[%clk 0:02:56.1]} 6. Ne5 {[%clk 0:02:22]} 6... Nbd7 {[%clk 0:02:52.9]}
7. Bd3 {[%clk 0:02:17.8]} 7... Bxd3 {[%clk 0:02:47.5]} 8. cxd3 {[%clk
0:02:18.7]} 8... e6 {[%clk 0:02:47.5]} 9. O-O {[%clk 0:02:14.2]} 9... Be7 {[%clk
0:02:34.5]} 10. Rc1 {[%clk 0:01:58.3]} 10... Nxe5 {[%clk 0:02:32.6]} 11. Bxe5
{[%clk 0:01:52.5]} 11... O-O {[%clk 0:02:25.2]} 12. Ne2 {[%clk 0:01:49.2]} 12...
Rc8 {[%clk 0:02:24.3]} 13. h3 {[%clk 0:01:43.3]} 13... Nd7 {[%clk 0:02:14.8]}
14. Bg3 {[%clk 0:01:41.6]} 14... c5 {[%clk 0:02:13.3]} 15. Qa4 {[%clk
0:01:36.2]} 15... a6 {[%clk 0:02:10.9]} 16. Rfd1 {[%clk 0:01:25.2]} 16... Bf6
{[%clk 0:01:51.2]} 17. dxc5 {[%clk 0:00:56.5]} 17... Nxc5 {[%clk 0:01:49.3]} 18.
Qb4 {[%clk 0:00:53]} 18... Be7 {[%clk 0:01:31.4]} 19. Qd2 {[%clk 0:00:52.6]}
19... Qb6 {[%clk 0:01:28.9]} 20. Nf4 {[%clk 0:00:47]} 20... Na4 {[%clk
0:01:21.3]} 21. Rb1 {[%clk 0:00:46.1]} 21... Rc6 {[%clk 0:01:14.9]} 22. Qe2
{[%clk 0:00:45.3]} 22... Qd8 {[%clk 0:01:02.4]} 23. Qg4 {[%clk 0:00:43.9]} 23...
e5 {[%clk 0:01:01.6]} 24. Nh5 {[%clk 0:00:40.9]} 24... Rg6 {[%clk 0:01:00.4]}
25. Qxa4 {[%clk 0:00:39.5]} 25... Rg5 {[%clk 0:00:56.2]} 26. Nf4 {[%clk
0:00:33.9]} 26... exf4 {[%clk 0:00:54.4]} 27. Bxf4 {[%clk 0:00:34.8]} 27... Rg6
{[%clk 0:00:54.3]} 28. Rbc1 {[%clk 0:00:32.3]} 28... b5 {[%clk 0:00:52.3]} 29.
Qb3 {[%clk 0:00:31.6]} 29... Qd7 {[%clk 0:00:51.5]} 30. Bg3 {[%clk 0:00:30.6]}
30... Bh4 {[%clk 0:00:40.2]} 31. Bxh4 {[%clk 0:00:26.5]} 31... Qxh3 {[%clk
0:00:39.1]} 32. Bg3 {[%clk 0:00:25.7]} 32... Rxg3 {[%clk 0:00:38]} 33. fxg3
{[%clk 0:00:26.5]} 33... Qxg3 {[%clk 0:00:36]} 34. Re1 {[%clk 0:00:26.8]} 1-0

[Event "Early-Titled-Tuesday-Blitz-March-05-2024"]
[Site "Chess.com"]
[Date "2024.03.05"]
[Round "1"]
[White "GelmanAlexander"]
[Black "Chesstiger64"]
[Result "1-0"]
[WhiteElo "2663"]
[BlackElo "2365"]
[TimeControl "180+1"]
[EndTime "8:06:38 PST"]
[Termination "GelmanAlexander won by resignation"]

1. d4 {[%clk 0:03:00.9]} 1... d6 {[%clk 0:02:54.5]} 2. Nc3 {[%clk 0:02:59.4]}
2... e5 {[%clk 0:02:53]} 3. Nf3 {[%clk 0:02:58.9]} 3... Bg4 {[%clk 0:02:51.9]}
4. dxe5 {[%clk 0:02:39]} 4... Bxf3 {[%clk 0:02:51.3]} 5. exf3 {[%clk 0:02:38.9]}
5... dxe5 {[%clk 0:02:51.9]} 6. Be3 {[%clk 0:02:33.2]} 6... Qxd1+ {[%clk
0:02:48.7]} 7. Rxd1 {[%clk 0:02:32.8]} 7... c6 {[%clk 0:02:48.9]} 8. Ne4 {[%clk
0:02:30.2]} 8... Nd7 {[%clk 0:02:46.4]} 9. Bc4 {[%clk 0:02:29.8]} 9... Nb6
{[%clk 0:02:37.7]} 10. Bb3 {[%clk 0:02:21.1]} 10... Nf6 {[%clk 0:02:37.6]} 11.
Ng5 {[%clk 0:02:14.9]} 11... Nfd5 {[%clk 0:02:37.6]} 12. Bxb6 {[%clk 0:02:14.1]}
12... axb6 {[%clk 0:02:32.4]} 13. Bxd5 {[%clk 0:02:13.9]} 13... cxd5 {[%clk
0:02:32.5]} 14. Rxd5 {[%clk 0:02:14.8]} 14... f6 {[%clk 0:02:26.3]} 15. Ne6
{[%clk 0:02:07.5]} 15... Rxa2 {[%clk 0:02:22.1]} 16. O-O {[%clk 0:02:03.9]}
16... Kf7 {[%clk 0:02:21.9]} 17. Nd8+ {[%clk 0:02:00]} 17... Kg6 {[%clk
0:02:20.5]} 18. Rb1 {[%clk 0:01:55]} 18... Bc5 {[%clk 0:02:17.5]} 19. Nxb7
{[%clk 0:01:54.2]} 19... Rc8 {[%clk 0:02:13.4]} 20. Nxc5 {[%clk 0:01:49]} 20...
bxc5 {[%clk 0:02:12.6]} 21. Kf1 {[%clk 0:01:45.5]} 21... c4 {[%clk 0:02:12.7]}
22. Rb5 {[%clk 0:01:38.9]} 22... c3 {[%clk 0:02:11.9]} 23. Ke2 {[%clk
0:01:37.3]} 23... cxb2 {[%clk 0:02:11.2]} 24. Kd2 {[%clk 0:01:34.8]} 24... Ra4
{[%clk 0:01:50.4]} 25. R5xb2 {[%clk 0:01:24.9]} 25... Rd4+ {[%clk 0:01:49.4]}
26. Ke2 {[%clk 0:01:25.4]} 26... Rcd8 {[%clk 0:01:49.1]} 27. c3 {[%clk
0:01:23.3]} 27... Rc4 {[%clk 0:01:48.7]} 28. Rc2 {[%clk 0:01:20.8]} 28... Rdc8
{[%clk 0:01:45.2]} 29. Kd3 {[%clk 0:01:20]} 29... f5 {[%clk 0:01:43]} 30. Rb6+
{[%clk 0:01:16.9]} 30... Kg5 {[%clk 0:01:41.6]} 31. Re6 {[%clk 0:01:15.2]} 31...
Kf4 {[%clk 0:01:39.5]} 32. g3+ {[%clk 0:01:01.6]} 32... Kxf3 {[%clk 0:01:39.2]}
33. Rxe5 {[%clk 0:01:02.3]} 33... g6 {[%clk 0:01:37.3]} 34. Re3+ {[%clk
0:01:01.4]} 34... Kg2 {[%clk 0:01:27.1]} 35. f4+ {[%clk 0:01:01.2]} 35... Kh3
{[%clk 0:01:26.6]} 36. Re7 {[%clk 0:01:01.2]} 36... h5 {[%clk 0:01:01.3]} 37.
Re6 {[%clk 0:01:01]} 37... R4c6 {[%clk 0:00:56.6]} 38. Rxc6 {[%clk 0:00:59]}
38... Rxc6 {[%clk 0:00:57.5]} 39. c4 {[%clk 0:00:59.7]} 39... h4 {[%clk
0:00:57.6]} 40. gxh4 {[%clk 0:00:58.7]} 40... Kg4 {[%clk 0:00:57.7]} 41. Rf2
{[%clk 0:00:51]} 41... Rd6+ {[%clk 0:00:57.3]} 42. Kc3 {[%clk 0:00:50.9]} 42...
Kxh4 {[%clk 0:00:49.2]} 43. c5 {[%clk 0:00:51]} 43... Rd1 {[%clk 0:00:47.7]} 44.
c6 {[%clk 0:00:51]} 44... Rc1+ {[%clk 0:00:47.6]} 45. Rc2 {[%clk 0:00:50.8]}
45... Rf1 {[%clk 0:00:46]} 46. c7 {[%clk 0:00:50.6]} 46... Rxf4 {[%clk
0:00:46.6]} 47. c8=Q {[%clk 0:00:50]} 47... g5 {[%clk 0:00:47.2]} 48. Qh8+
{[%clk 0:00:48.2]} 48... Kg4 {[%clk 0:00:47.4]} 49. Rg2+ {[%clk 0:00:48.3]}
49... Kf3 {[%clk 0:00:48]} 50. Qh3+ {[%clk 0:00:48.3]} 50... Ke4 {[%clk
0:00:46.7]} 51. Re2+ {[%clk 0:00:48.6]} 51... Kd5 {[%clk 0:00:47]} 52. Qd3+
{[%clk 0:00:48.2]} 52... Kc5 {[%clk 0:00:47.1]} 53. Re5+ {[%clk 0:00:48]} 1-0

[Event "Early-Titled-Tuesday-Blitz-March-05-2024"]
[Site "Chess.com"]
[Date "2024.03.05"]
[Round "1"]
[White "GianmarcoVaR"]
[Black "rubicapa"]
[Result "1-0"]
[WhiteElo "2748"]
[BlackElo "2429"]
[TimeControl "180+1"]
[EndTime "8:06:41 PST"]
[Termination "GianmarcoVaR won on time"]

1. e4 {[%clk 0:02:58.2]} 1... c6 {[%clk 0:02:58.4]} 2. d4 {[%clk 0:02:51.1]}
2... d5 {[%clk 0:02:59.3]} 3. e5 {[%clk 0:02:51.5]} 3... Bf5 {[%clk 0:02:57.9]}
4. Nf3 {[%clk 0:02:51.2]} 4... e6 {[%clk 0:02:57.8]} 5. Be2 {[%clk 0:02:51.7]}
5... Ne7 {[%clk 0:02:58]} 6. O-O {[%clk 0:02:51.9]} 6... Bg6 {[%clk 0:02:55.9]}
7. a4 {[%clk 0:02:52.2]} 7... Nf5 {[%clk 0:02:53.5]} 8. a5 {[%clk 0:02:52.2]}
8... a6 {[%clk 0:02:53.7]} 9. c3 {[%clk 0:02:52.3]} 9... c5 {[%clk 0:02:48.5]}
10. dxc5 {[%clk 0:02:50.7]} 10... Bxc5 {[%clk 0:02:47.1]} 11. Nbd2 {[%clk
0:02:39.8]} 11... Nc6 {[%clk 0:02:37.8]} 12. b4 {[%clk 0:02:40.1]} 12... Ba7
{[%clk 0:02:23.4]} 13. Nb3 {[%clk 0:02:40]} 13... d4 {[%clk 0:02:02.6]} 14. Bb2
{[%clk 0:01:55.5]} 14... dxc3 {[%clk 0:01:58.4]} 15. Bxc3 {[%clk 0:01:56]} 15...
Rc8 {[%clk 0:01:44.1]} 16. b5 {[%clk 0:01:43.7]} 16... axb5 {[%clk 0:01:36.1]}
17. Bxb5 {[%clk 0:01:44.6]} 17... O-O {[%clk 0:01:32.7]} 18. Qe2 {[%clk
0:01:37.1]} 18... Bh5 {[%clk 0:00:36.3]} 19. h3 {[%clk 0:01:32.8]} 19... Nh4
{[%clk 0:00:11]} 20. g4 {[%clk 0:01:27.5]} 20... Bg6 {[%clk 0:00:05.1]} 21. a6
{[%clk 0:00:26]} 21... bxa6 {[%clk 0:00:02.2]} 22. Bxa6 {[%clk 0:00:22.3]} 22...
Rb8 {[%clk 0:00:01.3]} 23. Na5 {[%clk 0:00:22.6]} 1-0

[Event "Early-Titled-Tuesday-Blitz-March-05-2024"]
[Site "Chess.com"]
[Date "2024.03.05"]
[Round "1"]
[White "rikchessmx"]
[Black "Roman_Ovetchkin"]
[Result "0-1"]
[WhiteElo "2267"]
[BlackElo "2593"]
[TimeControl "180+1"]
[EndTime "8:06:42 PST"]
[Termination "Roman_Ovetchkin won by checkmate"]

1. e4 {[%clk 0:02:56.5]} 1... e5 {[%clk 0:02:57.6]} 2. Nf3 {[%clk 0:02:56]} 2...
Nc6 {[%clk 0:02:56.6]} 3. Bb5 {[%clk 0:02:56]} 3... a6 {[%clk 0:02:52]} 4. Ba4
{[%clk 0:02:54.4]} 4... Nf6 {[%clk 0:02:50.5]} 5. O-O {[%clk 0:02:55]} 5... Be7
{[%clk 0:02:49.9]} 6. Re1 {[%clk 0:02:54.7]} 6... b5 {[%clk 0:02:49.8]} 7. Bb3
{[%clk 0:02:54.6]} 7... O-O {[%clk 0:02:49.5]} 8. c3 {[%clk 0:02:54.8]} 8... d5
{[%clk 0:02:48.8]} 9. exd5 {[%clk 0:02:55]} 9... Nxd5 {[%clk 0:02:49.2]} 10.
Nxe5 {[%clk 0:02:52.5]} 10... Nxe5 {[%clk 0:02:49.1]} 11. Rxe5 {[%clk
0:02:53.1]} 11... c6 {[%clk 0:02:48.5]} 12. d4 {[%clk 0:02:51.8]} 12... Bd6
{[%clk 0:02:47.8]} 13. Re1 {[%clk 0:02:51.7]} 13... Qh4 {[%clk 0:02:47.1]} 14.
g3 {[%clk 0:02:51.8]} 14... Qh3 {[%clk 0:02:47.2]} 15. Be3 {[%clk 0:02:45.5]}
15... Bg4 {[%clk 0:02:43.1]} 16. Qd3 {[%clk 0:02:45]} 16... Rae8 {[%clk
0:02:40.6]} 17. Nd2 {[%clk 0:02:43.7]} 17... Re6 {[%clk 0:02:30.9]} 18. a4
{[%clk 0:02:34.2]} 18... Rfe8 {[%clk 0:02:04.2]} 19. axb5 {[%clk 0:02:32.5]}
19... axb5 {[%clk 0:01:59.8]} 20. Qf1 {[%clk 0:02:22.7]} 20... Qh5 {[%clk
0:01:56.1]} 21. Bxd5 {[%clk 0:02:21.6]} 21... cxd5 {[%clk 0:01:54.4]} 22. Qxb5
{[%clk 0:02:06.7]} 22... Bh3 {[%clk 0:00:49.6]} 23. Qe2 {[%clk 0:01:54.2]} 23...
Bg4 {[%clk 0:00:43.9]} 24. Qb5 {[%clk 0:01:52.2]} 24... Bh3 {[%clk 0:00:43.6]}
25. Qe2 {[%clk 0:01:33.5]} 25... Qg6 {[%clk 0:00:38.1]} 26. Qf3 {[%clk
0:01:25.7]} 26... f5 {[%clk 0:00:37.9]} 27. Qxd5 {[%clk 0:01:23.5]} 27... Kh8
{[%clk 0:00:32.2]} 28. Nc4 {[%clk 0:00:39.4]} 28... f4 {[%clk 0:00:24.5]} 29.
Ra8 {[%clk 0:00:38.1]} 29... fxe3 {[%clk 0:00:21.3]} 30. Rxe3 {[%clk 0:00:25.3]}
30... Rxe3 {[%clk 0:00:18.9]} 31. fxe3 {[%clk 0:00:24.8]} 31... Qb1+ {[%clk
0:00:18]} 32. Kf2 {[%clk 0:00:23.3]} 32... Qf1# {[%clk 0:00:18.7]} 0-1

[Event "Early-Titled-Tuesday-Blitz-March-05-2024"]
[Site "Chess.com"]
[Date "2024.03.05"]
[Round "1"]
[White "JonasEilenberg"]
[Black "lluiss"]
[Result "1-0"]
[WhiteElo "2550"]
[BlackElo "2153"]
[TimeControl "180+1"]
[EndTime "8:06:43 PST"]
[Termination "JonasEilenberg won by resignation"]

1. d4 {[%clk 0:03:00.2]} 1... Nf6 {[%clk 0:02:58.2]} 2. c4 {[%clk 0:03:00.1]}
2... g6 {[%clk 0:02:55.7]} 3. Nc3 {[%clk 0:03:00.5]} 3... d5 {[%clk 0:02:55.9]}
4. Nf3 {[%clk 0:03:00.6]} 4... Bg7 {[%clk 0:02:55.1]} 5. Bg5 {[%clk 0:03:01.2]}
5... Ne4 {[%clk 0:02:53.6]} 6. Bf4 {[%clk 0:03:01.8]} 6... Nxc3 {[%clk
0:02:52.1]} 7. bxc3 {[%clk 0:03:02.7]} 7... c5 {[%clk 0:02:49.2]} 8. e3 {[%clk
0:03:02.9]} 8... O-O {[%clk 0:02:46.4]} 9. cxd5 {[%clk 0:03:02.8]} 9... cxd4
{[%clk 0:02:45.2]} 10. cxd4 {[%clk 0:03:03.7]} 10... Qxd5 {[%clk 0:02:45.2]} 11.
Be2 {[%clk 0:03:04.3]} 11... Qa5+ {[%clk 0:02:45]} 12. Qd2 {[%clk 0:03:04.6]}
12... Qxd2+ {[%clk 0:02:44.9]} 13. Kxd2 {[%clk 0:03:04.7]} 13... Nc6 {[%clk
0:02:45.3]} 14. Rhc1 {[%clk 0:03:04.4]} 14... Rd8 {[%clk 0:02:44.9]} 15. Rc5
{[%clk 0:03:04.9]} 15... Bg4 {[%clk 0:02:42.1]} 16. Rb1 {[%clk 0:02:54.3]} 16...
Bxf3 {[%clk 0:02:29.7]} 17. Bxf3 {[%clk 0:02:55.2]} 17... e5 {[%clk 0:02:29.9]}
18. Bxc6 {[%clk 0:02:54.9]} 18... exf4 {[%clk 0:02:28.1]} 19. Bxb7 {[%clk
0:02:51.9]} 19... fxe3+ {[%clk 0:02:28.2]} 20. fxe3 {[%clk 0:02:51.5]} 20...
Rab8 {[%clk 0:02:28.4]} 21. Rb3 {[%clk 0:02:45]} 21... Re8 {[%clk 0:02:14.9]}
22. Bd5 {[%clk 0:02:41.3]} 22... Rxb3 {[%clk 0:02:13.3]} 23. axb3 {[%clk
0:02:38.4]} 23... Bh6 {[%clk 0:02:12.3]} 24. Rc7 {[%clk 0:02:34.9]} 24... Rxe3
{[%clk 0:02:05.9]} 25. Kc2 {[%clk 0:02:34.4]} 25... Re2+ {[%clk 0:01:56.3]} 26.
Kd3 {[%clk 0:02:34.3]} 26... Ra2 {[%clk 0:01:47]} 27. Rxf7 {[%clk 0:02:28.5]}
27... Kh8 {[%clk 0:01:46.3]} 28. Rb7 {[%clk 0:02:22.2]} 28... Bf4 {[%clk
0:01:43.1]} 29. h3 {[%clk 0:02:15.2]} 29... Ra6 {[%clk 0:01:24.1]} 30. Kc4
{[%clk 0:01:56.2]} 30... Be3 {[%clk 0:01:21.6]} 31. Bf3 {[%clk 0:01:44.9]} 31...
Rd6 {[%clk 0:01:15.2]} 32. d5 {[%clk 0:01:41.2]} 32... Bb6 {[%clk 0:01:13.4]}
33. Kd3 {[%clk 0:01:30.8]} 33... Rd8 {[%clk 0:01:04]} 34. Re7 {[%clk 0:01:22.6]}
34... Rd6 {[%clk 0:01:03.6]} 35. Ke4 {[%clk 0:01:20.7]} 35... Bg1 {[%clk
0:00:54.7]} 36. Rb7 {[%clk 0:01:10.1]} 36... Rb6 {[%clk 0:00:53.3]} 37. Rxb6
{[%clk 0:00:55.3]} 37... Bxb6 {[%clk 0:00:51.8]} 38. Ke5 {[%clk 0:00:53.7]}
38... Kg7 {[%clk 0:00:51.3]} 39. Ke6 {[%clk 0:00:54]} 39... Kf8 {[%clk
0:00:51.4]} 40. Kd7 {[%clk 0:00:54.3]} 40... Bc5 {[%clk 0:00:47.3]} 41. d6
{[%clk 0:00:53.7]} 41... h5 {[%clk 0:00:41.5]} 42. Bc6 {[%clk 0:00:53]} 42... g5
{[%clk 0:00:38.4]} 43. Ke6 {[%clk 0:00:52.5]} 43... g4 {[%clk 0:00:36.2]} 44.
hxg4 {[%clk 0:00:52.1]} 44... hxg4 {[%clk 0:00:37.1]} 45. d7 {[%clk 0:00:46.3]}
45... Bb6 {[%clk 0:00:36.4]} 46. Kf5 {[%clk 0:00:47]} 46... Ke7 {[%clk
0:00:34.9]} 47. Kxg4 {[%clk 0:00:46.7]} 47... Kf6 {[%clk 0:00:35.2]} 48. Kf4
{[%clk 0:00:44.7]} 1-0

[Event "Early-Titled-Tuesday-Blitz-March-05-2024"]
[Site "Chess.com"]
[Date "2024.03.05"]
[Round "1"]
[White "SergioMoralesG"]
[Black "BilodeauA"]
[Result "0-1"]
[WhiteElo "2511"]
[BlackElo "2997"]
[TimeControl "180+1"]
[EndTime "8:06:45 PST"]
[Termination "BilodeauA won by resignation"]

1. d4 {[%clk 0:03:00.9]} 1... d5 {[%clk 0:03:00.2]} 2. c4 {[%clk 0:03:00.7]}
2... dxc4 {[%clk 0:03:01.1]} 3. Nf3 {[%clk 0:03:00.9]} 3... a6 {[%clk
0:02:59.9]} 4. e3 {[%clk 0:03:00.4]} 4... Bg4 {[%clk 0:03:00.6]} 5. Bxc4 {[%clk
0:02:59.5]} 5... e6 {[%clk 0:03:01.1]} 6. h3 {[%clk 0:02:59.3]} 6... Bh5 {[%clk
0:03:01]} 7. O-O {[%clk 0:02:56.2]} 7... Nc6 {[%clk 0:03:01.3]} 8. Nc3 {[%clk
0:02:55.3]} 8... Nf6 {[%clk 0:03:01.4]} 9. b3 {[%clk 0:02:46.8]} 9... Bd6 {[%clk
0:03:01.4]} 10. Bb2 {[%clk 0:02:45.6]} 10... O-O {[%clk 0:03:01.5]} 11. Be2
{[%clk 0:02:43.5]} 11... Nd5 {[%clk 0:03:01.6]} 12. Ne4 {[%clk 0:02:41.1]} 12...
f5 {[%clk 0:03:01.8]} 13. Nxd6 {[%clk 0:02:37.4]} 13... cxd6 {[%clk 0:03:01.7]}
14. a3 {[%clk 0:02:23.6]} 14... Nce7 {[%clk 0:03:01.5]} 15. Re1 {[%clk
0:02:18.9]} 15... Nf6 {[%clk 0:03:01.6]} 16. Ng5 {[%clk 0:02:14]} 16... Bxe2
{[%clk 0:03:01.1]} 17. Qxe2 {[%clk 0:02:14.9]} 17... Qd7 {[%clk 0:03:00.1]} 18.
e4 {[%clk 0:02:13.5]} 18... h6 {[%clk 0:02:46.8]} 19. e5 {[%clk 0:01:59.2]}
19... hxg5 {[%clk 0:02:46.9]} 20. exf6 {[%clk 0:01:58.6]} 20... Rxf6 {[%clk
0:02:47.8]} 21. Qh5 {[%clk 0:01:39.4]} 21... Rg6 {[%clk 0:02:39]} 22. Rac1
{[%clk 0:01:36.2]} 22... Rf8 {[%clk 0:02:34.6]} 23. Rc3 {[%clk 0:01:32.9]} 23...
f4 {[%clk 0:02:20.8]} 24. Rec1 {[%clk 0:01:24.8]} 24... Qb5 {[%clk 0:02:12.4]}
25. Rc7 {[%clk 0:01:20.7]} 25... Rh6 {[%clk 0:02:11.7]} 26. Qg4 {[%clk
0:01:14.3]} 26... Nd5 {[%clk 0:01:33.4]} 27. Qxg5 {[%clk 0:00:54.4]} 27... Nxc7
{[%clk 0:01:26.7]} 28. d5 {[%clk 0:00:54.8]} 28... e5 {[%clk 0:01:14.7]} 29.
Rxc7 {[%clk 0:00:54.8]} 29... Rh7 {[%clk 0:01:15.1]} 30. Qe7 {[%clk 0:00:40.9]}
30... Qxd5 {[%clk 0:01:07.9]} 31. Rd7 {[%clk 0:00:24.8]} 31... f3 {[%clk
0:00:50.7]} 32. Rxd6 {[%clk 0:00:20.4]} 32... Qf7 {[%clk 0:00:31.6]} 33. Qxe5
{[%clk 0:00:20.1]} 33... fxg2 {[%clk 0:00:30.4]} 34. Bd4 {[%clk 0:00:19]} 34...
Rxh3 {[%clk 0:00:28.4]} 35. Kxg2 {[%clk 0:00:18.8]} 35... Qf3+ {[%clk
0:00:27.5]} 0-1

[Event "Early-Titled-Tuesday-Blitz-March-05-2024"]
[Site "Chess.com"]
[Date "2024.03.05"]
[Round "1"]
[White "C_K_G"]
[Black "GameOverBro"]
[Result "0-1"]
[WhiteElo "2174"]
[BlackElo "2556"]
[TimeControl "180+1"]
[EndTime "8:06:45 PST"]
[Termination "GameOverBro won by resignation"]

1. e4 {[%clk 0:03:00.7]} 1... c5 {[%clk 0:02:58]} 2. Nf3 {[%clk 0:03:00.5]} 2...
Nc6 {[%clk 0:02:56.9]} 3. d4 {[%clk 0:03:00.5]} 3... cxd4 {[%clk 0:02:51.5]} 4.
Nxd4 {[%clk 0:03:00.7]} 4... g6 {[%clk 0:02:50.8]} 5. Nc3 {[%clk 0:02:59.6]}
5... Bg7 {[%clk 0:02:51]} 6. Be3 {[%clk 0:02:59.6]} 6... Nf6 {[%clk 0:02:51]} 7.
Be2 {[%clk 0:02:59.6]} 7... O-O {[%clk 0:02:50.6]} 8. f4 {[%clk 0:02:58.8]} 8...
d5 {[%clk 0:02:42.3]} 9. e5 {[%clk 0:02:55.6]} 9... Ne8 {[%clk 0:02:37.6]} 10.
O-O {[%clk 0:02:46.1]} 10... Nxd4 {[%clk 0:02:31.8]} 11. Bxd4 {[%clk 0:02:44.8]}
11... Nc7 {[%clk 0:02:31.9]} 12. Bf3 {[%clk 0:02:34.5]} 12... e6 {[%clk
0:02:30.9]} 13. Kh1 {[%clk 0:02:31.7]} 13... b5 {[%clk 0:02:30.9]} 14. a3 {[%clk
0:02:23.8]} 14... a5 {[%clk 0:02:30.8]} 15. g4 {[%clk 0:02:18]} 15... b4 {[%clk
0:02:16.5]} 16. Na4 {[%clk 0:02:07.6]} 16... bxa3 {[%clk 0:02:09.6]} 17. Rxa3
{[%clk 0:02:06]} 17... Nb5 {[%clk 0:02:10.2]} 18. Ra1 {[%clk 0:02:01.4]} 18...
Nxd4 {[%clk 0:02:08.3]} 19. Qxd4 {[%clk 0:02:02.3]} 19... Qh4 {[%clk 0:01:58.2]}
20. Nb6 {[%clk 0:01:44.2]} 20... Rb8 {[%clk 0:01:37.4]} 21. Rxa5 {[%clk
0:01:38.3]} 21... g5 {[%clk 0:01:35.6]} 22. f5 {[%clk 0:01:26]} 22... Bxe5
{[%clk 0:01:30.8]} 23. Qxe5 {[%clk 0:01:19.6]} 23... Rxb6 {[%clk 0:01:31.2]} 24.
f6 {[%clk 0:01:08.1]} 24... Rb4 {[%clk 0:01:21.8]} 25. Ra8 {[%clk 0:01:03.6]}
25... Qh6 {[%clk 0:01:20.1]} 26. b3 {[%clk 0:00:44.2]} 26... Rf4 {[%clk
0:01:19.4]} 27. Be2 {[%clk 0:00:34.7]} 27... Re4 {[%clk 0:01:08.8]} 28. Qg3
{[%clk 0:00:09.1]} 28... Rxe2 {[%clk 0:01:06.4]} 29. c4 {[%clk 0:00:10]} 29...
dxc4 {[%clk 0:01:03.7]} 30. Rb8 {[%clk 0:00:09.2]} 30... c3 {[%clk 0:01:00.5]}
31. Qc7 {[%clk 0:00:08.6]} 31... Bd7 {[%clk 0:00:46.2]} 32. Rxf8+ {[%clk
0:00:07.5]} 32... Qxf8 {[%clk 0:00:47.1]} 33. Qxd7 {[%clk 0:00:05.3]} 33... Qa8+
{[%clk 0:00:47.1]} 0-1